fUST/lending_fUST_20240302
["ID","MTS","AMOUNT","RATE_DAILY","PERIOD"]
[315989974,1709316640680,-412.61270534,0.00020996,2]
[315989976,1709316640690,-500.0,0.00020996,2]
[315989978,1709316640699,-500.0,0.00020996,2]
[315989980,1709316640709,-500.0,0.00020996,2]
[315989982,1709316640718,-500.0,0.00020996,2]
[315989984,1709316640728,-500.0,0.00020996,2]
[315989986,1709316640737,-500.0,0.00020996,2]
[315989988,1709316640746,-500.0,0.00020996,2]
[315989990,1709316640756,-500.0,0.00020996,2]
[315989992,1709316640766,-501.73,0.00020996,2]
[315989994,1709316640775,-501.73,0.00020996,2]
[315989996,1709316640784,-2061.77,0.00020996,2]
[315989998,1709316640793,-2061.77,0.00020996,2]
[315990000,1709316640802,-500.0,0.00020996,2]
[315990002,1709316640811,-500.0,0.00020996,2]
[315990003,1709316640820,-500.0,0.00020996,2]
[315990005,1709316640830,-500.0,0.00020996,2]
[315990007,1709316640839,-500.0,0.00020996,2]
[315990009,1709316640848,-500.0,0.00020996,2]
[315990011,1709316640858,-500.0,0.00020996,2]
[315990013,1709316640867,-500.0,0.00020996,2]
[315990015,1709316640876,-500.0,0.00020996,2]
[315990017,1709316640886,-500.0,0.00020996,2]
[315990019,1709316640895,-75989.81300403,0.00020997,2]
[315990021,1709316640904,-476.48,0.00020997,2]
[315990023,1709316640913,-310.61,0.00020997,2]
[315990025,1709316640922,-500.0,0.00020997,2]
[315990027,1709316640932,-189.98,0.00020997,2]
[315990029,1709316640941,-501.73,0.00020997,2]
[315990031,1709316640951,-500.0,0.00020997,2]
[315990033,1709316640961,-500.0,0.00020997,2]
[315990035,1709316640970,-500.0,0.00020997,2]
[315990037,1709316640980,-500.0,0.00020997,2]
[315990039,1709316640989,-500.0,0.00020997,2]
[315990041,1709316640999,-18647.96991955,0.00020998,2]
[315990043,1709316641011,-330.19028619,0.00020998,2]
[315990045,1709316641020,-400.3416809,0.00020998,2]
[315990047,1709316641029,-400.0,0.00020998,2]
[315990049,1709316641038,-197.66602974,0.00020998,2]
[315990051,1709316641047,-155.0294556,0.00020998,2]
[315990053,1709316641057,-300.22703876,0.00020998,2]
[315990055,1709316641066,-159.87982714,0.00020998,2]
[315990056,1709316641075,-246.51398491,0.00020998,2]
[315990058,1709316641085,-300.2820096,0.00020998,2]
[315990060,1709316641094,-201.7351925,0.00020998,2]
[315990062,1709316641104,-205.9203372,0.00020998,2]
[315990064,1709316641113,-584.3098698,0.00020998,2]
[315990066,1709316641121,-298.11205349,0.00020998,2]
[315990068,1709316641131,-207.50951058,0.00020998,2]
[315990070,1709316641139,-563.11823056,0.00020998,2]
[315990072,1709316641148,-3150.73171569,0.00020998,2]
[315990074,1709316641158,-200.54373759,0.00020998,2]
[315990076,1709316641167,-155.02635461,0.00020998,2]
[315990078,1709316641177,-263.23938095,0.00020998,2]
[315990080,1709316641186,-157.73861463,0.00020998,2]
[315990082,1709316641195,-158.82433248,0.00020998,2]
[315990084,1709316641205,-305.93534606,0.00020998,2]
[315990086,1709316641214,-295.33876898,0.00020998,2]
[315990088,1709316641223,-162.11854936,0.00020998,2]
[315990090,1709316641232,-204.71835389,0.00020998,2]
[315990091,1709316641241,-197.5903061,0.00020998,2]
[315990093,1709316641251,-501.73,0.00020998,2]
[315990095,1709316641263,-2061.77,0.00020998,2]
[315990097,1709316641272,-500.0,0.00020998,2]
[315990099,1709316641281,-485.1,0.00020998,2]
[315990101,1709316641290,-500.0,0.00020998,2]
[315990102,1709316641299,-200.49260389,0.00020999,2]
[315990103,1709316641308,-1607.68810909,0.00020999,2]
[315990104,1709316641317,-445.36,0.00020999,2]
[315990105,1709316641326,-445.36,0.00020999,2]
[315990106,1709316641335,-445.36,0.00020999,2]
[315990107,1709316641345,-445.36,0.00020999,2]
[315990108,1709316641354,-445.36,0.00020999,2]
[315990109,1709316641363,-445.36,0.00020999,2]
[315990110,1709316641372,-445.36,0.00020999,2]
[315990111,1709316641381,-445.36,0.00020999,2]
[315990113,1709316641393,-445.36,0.00020999,2]
[315990115,1709316641407,-445.36,0.00020999,2]
[315990118,1709316641420,-500.0,0.00020999,2]
[315990120,1709316641432,-370.42,0.00020999,2]
[315990122,1709316641443,-501.73,0.00020999,2]
[315990125,1709316641456,-501.73,0.00020999,2]
[315990127,1709316641467,-501.73,0.00020999,2]
[315990129,1709316641477,-501.73,0.00020999,2]
[315990131,1709316641488,-501.73,0.00020999,2]
[315990133,1709316641501,-501.73,0.00020999,2]
[315990135,1709316641514,-501.73,0.00020999,2]
[315990137,1709316641528,-501.73,0.00020999,2]
[315990140,1709316641540,-501.73,0.00020999,2]
[315990142,1709316641553,-501.73,0.00020999,2]
[315990144,1709316641564,-501.73,0.00020999,2]
[315990146,1709316641576,-501.73,0.00020999,2]
[315990149,1709316641586,-501.73,0.00020999,2]
[315990151,1709316641597,-501.95,0.00020999,2]
[315990153,1709316641609,-2061.77,0.00020999,2]
[315990155,1709316641619,-2061.77,0.00020999,2]
[315990157,1709316641629,-2061.77,0.00020999,2]
[315990159,1709316641639,-2061.77,0.00020999,2]
[315990161,1709316641649,-2061.77,0.00020999,2]
[315990164,1709316641660,-2061.77,0.00020999,2]
[315990166,1709316641671,-2061.77,0.00020999,2]
[315990168,1709316641682,-2061.77,0.00020999,2]
[315990170,1709316641693,-2061.77,0.00020999,2]
[315990172,1709316641704,-2061.77,0.00020999,2]
[315990175,1709316641715,-2061.77,0.00020999,2]
[315990177,1709316641725,-2061.77,0.00020999,2]
[315990179,1709316641736,-2061.77,0.00020999,2]
[315990181,1709316641747,-2061.77,0.00020999,2]
[315990183,1709316641758,-2061.77,0.00020999,2]
[315990185,1709316641769,-2061.77,0.00020999,2]
[315990188,1709316641779,-2061.92,0.00020999,2]
[315990190,1709316641789,-500.0,0.00020999,2]
[315990192,1709316641798,-500.0,0.00020999,2]
[315990194,1709316641808,-500.0,0.00020999,2]
[315990196,1709316641821,-256.19620961,0.00020999,2]
[315990198,1709316641832,-500.0,0.00020999,2]
[315990200,1709316641843,-500.0,0.00020999,2]
[315990203,1709316641853,-448.23,0.00020999,2]
[315990205,1709316641866,-500.0,0.00020999,2]
[315990207,1709316641877,-381.9,0.00020999,2]
[315990209,1709316641887,-500.0,0.00020999,2]
[315990212,1709316641898,-500.0,0.00020999,2]
[315990214,1709316641908,-500.0,0.00020999,2]
[315990216,1709316641919,-500.0,0.00020999,2]
[315990218,1709316641931,-500.0,0.00020999,2]
[315990220,1709316641941,-500.0,0.00020999,2]
[315990222,1709316641953,-500.0,0.00020999,2]
[315990224,1709316641964,-500.0,0.00020999,2]
[315990226,1709316641976,-500.0,0.00020999,2]
[315990229,1709316641989,-500.0,0.00020999,2]
[315990231,1709316642000,-256.97,0.00020999,2]
[315990233,1709316642014,-500.0,0.00020999,2]
[315990235,1709316642026,-500.0,0.00020999,2]
[315990238,1709316642038,-500.0,0.00020999,2]
[315990240,1709316642049,-525.27069652,0.00020999,2]
[315990242,1709316642061,-500.0,0.00020999,2]
[315990244,1709316642071,-500.0,0.00020999,2]
[315990246,1709316642081,-500.0,0.00020999,2]
[315990248,1709316642091,-553.50016203,0.00020999,2]
[315990250,1709316642101,-500.0,0.00020999,2]
[315990252,1709316642111,-225.81208957,0.00020999,2]
[315990254,1709316642121,-500.0,0.00020999,2]
[315990257,1709316642132,-500.0,0.00020999,2]
[315990259,1709316642143,-500.0,0.00020999,2]
[315990261,1709316642155,-500.0,0.00020999,2]
[315990263,1709316642167,-500.0,0.00020999,2]
[315990265,1709316642177,-312.22323146,0.00020999,2]
[315990267,1709316642188,-300.0,0.00020999,2]
[315990270,1709316642200,-1674812.26746462,0.00021,2]
[315990281,1709316642298,-60942.30024531,0.00021,2]
[315990291,1709316642391,-364253.63629656,0.00021,2]
[315990392,1709316643378,-7747.25274413,0.00021,2]
[315990693,1709316646436,-17343.73234869,0.00021,2]
[315990696,1709316646450,-2677.5,0.00021,2]
[315992230,1709317777551,500.0,0.00016645,2]
[315992339,1709317835998,-166.46955672,0.00017528,2]
[315992340,1709317836009,-309.60917257,0.00017607,2]
[315992341,1709317836021,-186.25061937,0.00017608,2]
[315992342,1709317836034,-527.85698207,0.00017608,2]
[315992343,1709317836044,-155.07598723,0.00017609,2]
[315992344,1709317836053,-176.2238837,0.0001761,2]
[315992345,1709317836063,-1250.25966196,0.0001761,2]
[315992346,1709317836074,-179.57077703,0.0001761,2]
[315992347,1709317836084,-15928.06357623,0.00017612,2]
[315992348,1709317836094,-6913.605584,0.00017613,2]
[315992350,1709317836104,-2683.1414593,0.00017629,2]
[315992351,1709317836113,-2854.0,0.00017677,2]
[315992353,1709317836123,-2317.1882869,0.00017722,2]
[315992355,1709317836133,-262.991557,0.00017756,2]
[315992357,1709317836143,-8912.197917,0.00017848,2]
[315992359,1709317836152,-827.01050306,0.00018303,2]
[315992361,1709317836163,-2324.54578161,0.00018795,2]
[315992363,1709317836172,-1014.03074504,0.00018886,2]
[315992365,1709317836182,-857.19774774,0.000189,2]
[315992367,1709317836191,-155.07598723,0.00019,2]
[315992369,1709317836201,-166.308117,0.00019178,2]
[315992371,1709317836210,-166.666666,0.00019178,2]
[315992372,1709317836220,-166.71132,0.00019178,2]
[315992375,1709317836230,-620.17285183,0.00019292,2]
[315992377,1709317836240,-166.666666,0.00019926,2]
[315992378,1709317836249,-1500.0,0.0002,2]
[315992379,1709317836258,-152.47037492,0.0002,2]
[315992380,1709317836268,-5575.91634066,0.0002,2]
[315992381,1709317836282,-400.0,0.0002,2]
[315992382,1709317836292,-155.07598723,0.0002,2]
[315992383,1709317836301,-238.53127687,0.00020076,2]
[315992384,1709317836311,-200.7008514,0.00020078,2]
[315992385,1709317836322,-200.7008514,0.00020078,2]
[315992386,1709317836332,-200.7008514,0.00020078,2]
[315992387,1709317836342,-344.95622137,0.00020089,2]
[315992388,1709317836351,-153.0,0.00020178,2]
[315992389,1709317836361,-200.7008514,0.00020178,2]
[315992390,1709317836371,-200.7008514,0.00020178,2]
[315992391,1709317836380,-200.7008514,0.00020178,2]
[315992392,1709317836389,-20840.03860396,0.00020188,2]
[315992393,1709317836399,-14873.52838908,0.00020189,5]
[315992394,1709317836409,-179.70416255,0.00020189,5]
[315992395,1709317836418,-50000.0,0.00020189,5]
[315992396,1709317836429,-61603.94229502,0.00020189,5]
[315992397,1709317836438,-1119.22956785,0.00020189,2]
[315992398,1709317836448,-620.00864259,0.00020257,2]
[315992399,1709317836458,-344.95622135,0.00020292,2]
[315992400,1709317836467,-8258.82313347,0.00020299,2]
[315992401,1709317836476,-1927.05873114,0.00020299,2]
[315992402,1709317836487,-678.57632242,0.00020299,2]
[315992403,1709317836496,-1000.0,0.0002041,2]
[315992404,1709317836506,-1000.0,0.00020433,2]
[315992405,1709317836516,-1000.0,0.0002045,2]
[315992406,1709317836529,-153.0,0.00020466,2]
[315992407,1709317836538,-153.0,0.00020466,2]
[315992408,1709317836548,-153.0,0.00020466,2]
[315992409,1709317836557,-153.0,0.00020466,2]
[315992410,1709317836567,-153.0,0.00020466,2]
[315992411,1709317836576,-153.0,0.00020466,2]
[315992412,1709317836586,-153.0,0.00020466,2]
[315992413,1709317836596,-153.0,0.00020466,2]
[315992414,1709317836606,-153.0,0.00020466,2]
[315992415,1709317836616,-217.9000002,0.00020466,2]
[315992416,1709317836626,-1000.0,0.00020474,2]
[315992417,1709317836636,-344.95622135,0.00020494,2]
[315992418,1709317836645,-153.0,0.000205,2]
[315992419,1709317836655,-153.0,0.000205,2]
[315992420,1709317836664,-1000.0,0.00020524,2]
[315992421,1709317836674,-500.0,0.00020546,2]
[315992422,1709317836684,-412.53102785,0.00020546,2]
[315992423,1709317836694,-500.0,0.00020546,2]
[315992424,1709317836703,-242.10061658,0.00020546,2]
[315992425,1709317836713,-500.0,0.00020546,2]
[315992426,1709317836723,-200.30457798,0.00020546,2]
[315992427,1709317836733,-500.0,0.00020546,2]
[315992428,1709317836743,-500.0,0.00020546,2]
[315992429,1709317836753,-500.0,0.00020546,2]
[315992430,1709317836762,-500.0,0.00020546,2]
[315992431,1709317836774,-352.58860038,0.00020546,2]
[315992432,1709317836784,-278.09714413,0.00020546,2]
[315992433,1709317836793,-500.0,0.00020546,2]
[315992434,1709317836802,-500.0,0.00020546,2]
[315992435,1709317836812,-354.63862641,0.00020546,2]
[315992436,1709317836822,-500.0,0.00020546,2]
[315992437,1709317836831,-500.0,0.00020546,2]
[315992438,1709317836840,-500.0,0.00020546,2]
[315992439,1709317836850,-500.0,0.00020546,2]
[315992440,1709317836862,-500.0,0.00020546,2]
[315992441,1709317836872,-500.0,0.00020546,2]
[315992442,1709317836881,-500.0,0.00020546,2]
[315992443,1709317836891,-537.60970696,0.00020546,2]
[315992444,1709317836900,-412.61270534,0.00020546,2]
[315992445,1709317836910,-500.0,0.00020547,2]
[315992446,1709317836919,-500.0,0.00020547,2]
[315992447,1709317836929,-500.0,0.00020547,2]
[315992448,1709317836941,-500.0,0.00020547,2]
[315992449,1709317836951,-500.0,0.00020547,2]
[315992450,1709317836960,-500.0,0.00020547,2]
[315992451,1709317836970,-500.0,0.00020547,2]
[315992452,1709317836979,-500.0,0.00020547,2]
[315992453,1709317836989,-500.0,0.00020547,2]
[315992454,1709317836999,-500.0,0.00020547,2]
[315992455,1709317837008,-500.0,0.00020547,2]
[315992456,1709317837017,-500.0,0.00020547,2]
[315992457,1709317837029,-500.0,0.00020547,2]
[315992458,1709317837039,-500.0,0.00020547,2]
[315992459,1709317837049,-533.82979316,0.00020547,2]
[315992460,1709317837059,-500.0,0.00020547,2]
[315992461,1709317837068,-500.0,0.00020547,2]
[315992462,1709317837078,-500.0,0.00020547,2]
[315992463,1709317837087,-500.95648843,0.00020547,2]
[315992464,1709317837096,-500.0,0.00020547,2]
[315992465,1709317837105,-500.0,0.00020547,2]
[315992466,1709317837114,-500.0,0.00020547,2]
[315992467,1709317837124,-500.0,0.00020547,2]
[315992468,1709317837133,-500.0,0.00020547,2]
[315992469,1709317837142,-500.0,0.00020547,2]
[315992470,1709317837151,-500.0,0.00020547,2]
[315992471,1709317837160,-500.0,0.00020547,2]
[315992472,1709317837169,-395.53381871,0.00020547,2]
[315992473,1709317837178,-161.07280851,0.00020547,2]
[315992474,1709317837187,-578.52211737,0.00020547,2]
[315992475,1709317837196,-500.0,0.00020547,2]
[315992476,1709317837206,-452.29044727,0.00020547,2]
[315992477,1709317837215,-500.0,0.00020547,2]
[315992478,1709317837225,-500.0,0.00020547,2]
[315992479,1709317837234,-500.0,0.00020547,2]
[315992480,1709317837244,-500.0,0.00020547,2]
[315992481,1709317837253,-500.0,0.00020547,2]
[315992482,1709317837263,-500.0,0.00020547,2]
[315992483,1709317837274,-518.89002625,0.00020547,2]
[315992484,1709317837284,-500.0,0.00020547,2]
[315992485,1709317837293,-207.18146947,0.00020547,2]
[315992486,1709317837302,-500.0,0.00020547,2]
[315992487,1709317837311,-500.0,0.00020547,2]
[315992488,1709317837320,-200.32914559,0.00020547,2]
[315992489,1709317837330,-504.03604102,0.00020547,2]
[315992490,1709317837340,-500.0,0.00020547,2]
[315992491,1709317837349,-500.0,0.00020547,2]
[315992492,1709317837358,-500.0,0.00020547,2]
[315992493,1709317837367,-500.0,0.00020547,2]
[315992494,1709317837377,-500.0,0.00020547,2]
[315992495,1709317837386,-500.0,0.00020547,2]
[315992496,1709317837395,-500.0,0.00020547,2]
[315992497,1709317837404,-500.0,0.00020547,2]
[315992498,1709317837414,-500.0,0.00020547,2]
[315992499,1709317837423,-500.0,0.00020547,2]
[315992500,1709317837432,-500.97361617,0.00020547,2]
[315992501,1709317837442,-500.0,0.00020547,2]
[315992502,1709317837451,-500.0,0.00020547,2]
[315992503,1709317837461,-500.0,0.00020547,2]
[315992504,1709317837471,-496.23556867,0.00020547,2]
[315992505,1709317837480,-500.0,0.00020547,2]
[315992506,1709317837490,-500.60070753,0.00020547,2]
[315992507,1709317837499,-500.0,0.00020547,2]
[315992508,1709317837508,-500.0,0.00020547,2]
[315992509,1709317837517,-500.0,0.00020547,2]
[315992510,1709317837528,-501.04679274,0.00020547,2]
[315992511,1709317837538,-522.90165729,0.00020547,2]
[315992512,1709317837547,-241.49757873,0.00020547,2]
[315992513,1709317837556,-500.40287248,0.00020547,2]
[315992514,1709317837566,-500.0,0.00020547,2]
[315992515,1709317837574,-500.0,0.00020547,2]
[315992516,1709317837584,-500.0,0.00020547,2]
[315992517,1709317837593,-500.0,0.00020547,2]
[315992518,1709317837603,-500.0,0.00020547,2]
[315992519,1709317837613,-500.0,0.00020547,2]
[315992520,1709317837622,-500.0,0.00020547,2]
[315992521,1709317837632,-500.97917017,0.00020547,2]
[315992522,1709317837642,-500.0,0.00020547,2]
[315992523,1709317837651,-500.0,0.00020547,2]
[315992524,1709317837661,-500.0,0.00020547,2]
[315992525,1709317837670,-500.0,0.00020547,2]
[315992526,1709317837679,-500.0,0.00020547,2]
[315992527,1709317837689,-500.0,0.00020547,2]
[315992528,1709317837698,-500.0,0.00020547,2]
[315992529,1709317837707,-500.0,0.00020547,2]
[315992530,1709317837716,-500.0,0.00020547,2]
[315992531,1709317837726,-571.14185013,0.00020547,2]
[315992532,1709317837735,-500.0,0.00020547,2]
[315992533,1709317837745,-500.0,0.00020547,2]
[315992534,1709317837755,-500.0,0.00020547,2]
[315992535,1709317837764,-500.0,0.00020547,2]
[315992536,1709317837774,-500.0,0.00020547,2]
[315992537,1709317837783,-542.40879376,0.00020547,2]
[315992538,1709317837792,-500.0,0.00020547,2]
[315992539,1709317837802,-500.45340877,0.00020547,2]
[315992540,1709317837811,-515.72568732,0.00020547,2]
[315992541,1709317837821,-500.11407965,0.00020547,2]
[315992542,1709317837830,-500.27104441,0.00020547,2]
[315992543,1709317837839,-500.0,0.00020547,2]
[315992544,1709317837849,-618.57571928,0.00020547,2]
[315992545,1709317837859,-500.0,0.00020547,2]
[315992546,1709317837870,-500.0,0.00020547,2]
[315992547,1709317837882,-155.15204901,0.00020547,2]
[315992548,1709317837893,-500.66949718,0.00020547,2]
[315992549,1709317837903,-500.0,0.00020547,2]
[315992550,1709317837912,-500.0,0.00020547,2]
[315992551,1709317837921,-500.0,0.00020547,2]
[315992552,1709317837931,-500.0,0.00020547,2]
[315992553,1709317837941,-500.0,0.00020547,2]
[315992554,1709317837951,-500.0,0.00020547,2]
[315992555,1709317837963,-500.0,0.00020547,2]
[315992556,1709317837974,-500.0,0.00020547,2]
[315992557,1709317837983,-500.0,0.00020547,2]
[315992559,1709317837992,-500.0,0.00020547,2]
[315992561,1709317838001,-500.0,0.00020547,2]
[315992562,1709317838010,-500.0,0.00020547,2]
[315992563,1709317838021,-172.36241238,0.00020547,2]
[315992564,1709317838030,-500.0,0.00020547,2]
[315992565,1709317838039,-500.0,0.00020547,2]
[315992567,1709317838049,-500.4947331,0.00020547,2]
[315992568,1709317838059,-515.52236747,0.00020547,2]
[315992569,1709317838068,-502.11613099,0.00020547,2]
[315992570,1709317838077,-500.0,0.00020547,2]
[315992571,1709317838087,-500.0,0.00020547,2]
[315992572,1709317838096,-500.0,0.00020547,2]
[315992573,1709317838106,-500.0,0.00020547,2]
[315992574,1709317838115,-500.0,0.00020547,2]
[315992575,1709317838124,-500.0,0.00020547,2]
[315992576,1709317838133,-500.0,0.00020547,2]
[315992577,1709317838142,-504.61327759,0.00020547,2]
[315992578,1709317838151,-500.0,0.00020547,2]
[315992579,1709317838160,-500.0,0.00020547,2]
[315992581,1709317838169,-500.0,0.00020547,2]
[315992583,1709317838178,-189.37773959,0.00020547,2]
[315992584,1709317838187,-500.0,0.00020547,2]
[315992585,1709317838196,-500.0,0.00020547,2]
[315992586,1709317838205,-500.0,0.00020547,2]
[315992589,1709317838215,-500.0,0.00020547,2]
[315992591,1709317838303,-335.70075275,0.00020547,2]
[315992594,1709317838313,-500.0,0.00020547,2]
[315992596,1709317838323,-500.0,0.00020547,2]
[315992597,1709317838333,-426.50033035,0.00020547,2]
[315992600,1709317838342,-322.62710662,0.00020547,2]
[315992601,1709317838352,-500.88794162,0.00020547,2]
[315992604,1709317838361,-500.0,0.00020547,2]
[315992606,1709317838371,-500.0,0.00020547,2]
[315992607,1709317838380,-500.0,0.00020547,2]
[315992610,1709317838389,-500.0,0.00020547,2]
[315992611,1709317838399,-500.0,0.00020547,2]
[315992613,1709317838408,-500.0,0.00020547,2]
[315992615,1709317838417,-500.0,0.00020547,2]
[315992617,1709317838426,-502.04637778,0.00020547,2]
[315992619,1709317838436,-500.0,0.00020547,2]
[315992620,1709317838445,-500.0,0.00020547,2]
[315992622,1709317838454,-500.0,0.00020547,2]
[315992623,1709317838464,-500.0,0.00020547,2]
[315992625,1709317838474,-6245.35,0.00020547,2]
[315992627,1709317838483,-500.0,0.00020547,2]
[315992629,1709317838493,-500.0,0.00020547,2]
[315992631,1709317838502,-500.0,0.00020547,2]
[315992633,1709317838512,-479.02635274,0.00020547,2]
[315992635,1709317838524,-500.0,0.00020547,2]
[315992637,1709317838534,-500.768202,0.00020547,2]
[315992639,1709317838544,-500.0,0.00020547,2]
[315992641,1709317838553,-500.0,0.00020547,2]
[315992642,1709317838563,-500.0,0.00020547,2]
[315992645,1709317838572,-500.0,0.00020547,2]
[315992646,1709317838581,-592.76973769,0.00020547,2]
[315992648,1709317838591,-500.0,0.00020547,2]
[315992650,1709317838600,-500.0,0.00020547,2]
[315992652,1709317838610,-500.0,0.00020547,2]
[315992654,1709317838620,-500.0,0.00020547,2]
[315992657,1709317838629,-500.0,0.00020547,2]
[315992658,1709317838638,-500.0,0.00020547,2]
[315992660,1709317838648,-500.0,0.00020547,2]
[315992662,1709317838659,-500.0,0.00020547,2]
[315992664,1709317838668,-500.0,0.00020547,2]
[315992666,1709317838676,-500.0,0.00020547,2]
[315992668,1709317838685,-500.0,0.00020547,2]
[315992670,1709317838695,-284.39220468,0.00020547,2]
[315992672,1709317838704,-500.0,0.00020547,2]
[315992674,1709317838713,-500.0,0.00020547,2]
[315992676,1709317838723,-500.0,0.00020547,2]
[315992678,1709317838732,-500.0,0.00020547,2]
[315992680,1709317838742,-500.0,0.00020547,2]
[315992683,1709317838751,-500.0,0.00020547,2]
[315992684,1709317838760,-500.0,0.00020547,2]
[315992686,1709317838772,-500.0,0.00020547,2]
[315992689,1709317838782,-500.0,0.00020547,2]
[315992690,1709317838792,-500.0,0.00020547,2]
[315992693,1709317838802,-500.0,0.00020547,2]
[315992695,1709317838811,-371.80243991,0.00020547,2]
[315992697,1709317838821,-500.0,0.00020547,2]
[315992699,1709317838830,-500.0,0.00020547,2]
[315992701,1709317838839,-500.0,0.00020547,2]
[315992703,1709317838848,-500.0,0.00020547,2]
[315992705,1709317838858,-500.0,0.00020547,2]
[315992707,1709317838868,-500.0,0.00020547,2]
[315992709,1709317838877,-500.0,0.00020547,2]
[315992711,1709317838887,-500.0,0.00020547,2]
[315992712,1709317838897,-500.0,0.00020547,2]
[315992715,1709317838906,-500.0,0.00020547,2]
[315992716,1709317838915,-548.32424003,0.00020547,2]
[315992719,1709317838925,-500.0,0.00020547,2]
[315992721,1709317838934,-500.0,0.00020547,2]
[315992723,1709317838944,-500.0,0.00020547,2]
[315992725,1709317838953,-500.0,0.00020547,2]
[315992727,1709317838962,-500.0,0.00020547,2]
[315992729,1709317838971,-626.07197533,0.00020547,2]
[315992731,1709317838982,-500.0,0.00020547,2]
[315992733,1709317838991,-500.0,0.00020547,2]
[315992735,1709317839000,-500.0,0.00020547,2]
[315992737,1709317839009,-318.14686386,0.00020547,2]
[315992738,1709317839017,-500.0,0.00020547,2]
[315992741,1709317839029,-500.0,0.00020547,2]
[315992743,1709317839038,-500.0,0.00020547,2]
[315992744,1709317839049,-501.34955281,0.00020547,2]
[315992746,1709317839059,-500.0,0.00020547,2]
[315992748,1709317839068,-500.0,0.00020547,2]
[315992750,1709317839078,-500.0,0.00020547,2]
[315992752,1709317839086,-500.0,0.00020547,2]
[315992754,1709317839096,-500.0,0.00020547,2]
[315992756,1709317839105,-500.0,0.00020547,2]
[315992758,1709317839114,-500.0,0.00020547,2]
[315992760,1709317839123,-500.0,0.00020547,2]
[315992762,1709317839133,-500.0,0.00020547,2]
[315992764,1709317839142,-500.0,0.00020547,2]
[315992766,1709317839152,-500.0,0.00020547,2]
[315992768,1709317839161,-500.0,0.00020547,2]
[315992770,1709317839169,-500.0,0.00020547,2]
[315992772,1709317839179,-501.08668541,0.00020547,2]
[315992774,1709317839188,-500.0,0.00020547,2]
[315992776,1709317839197,-500.0,0.00020547,2]
[315992778,1709317839206,-500.0,0.00020547,2]
[315992780,1709317839216,-501.69088069,0.00020547,2]
[315992782,1709317839225,-500.0,0.00020547,2]
[315992784,1709317839234,-500.0,0.00020547,2]
[315992786,1709317839243,-500.0,0.00020547,2]
[315992788,1709317839257,-500.0,0.00020547,2]
[315992790,1709317839275,-500.0,0.00020547,2]
[315992792,1709317839288,-403.93103987,0.00020547,2]
[315992794,1709317839308,-500.0,0.00020547,2]
[315992796,1709317839318,-500.0,0.00020547,2]
[315992798,1709317839330,-500.0,0.00020547,2]
[315992800,1709317839339,-500.0,0.00020547,2]
[315992802,1709317839349,-500.0,0.00020547,2]
[315992804,1709317839358,-500.0,0.00020547,2]
[315992806,1709317839368,-500.0,0.00020547,2]
[315992808,1709317839377,-601.31095344,0.00020547,2]
[315992810,1709317839386,-500.0,0.00020547,2]
[315992812,1709317839395,-500.0,0.00020547,2]
[315992814,1709317839405,-500.0,0.00020547,2]
[315992816,1709317839414,-500.0,0.00020547,2]